fUST/lending_fUST_20250611
["ID","MTS","AMOUNT","RATE_DAILY","PERIOD"]
[365346469,1749612638792,-460.0,0.00021643,4]
[365346470,1749612638801,-468.44820745,0.00021643,4]
[365346471,1749612638810,-460.0,0.00021643,4]
[365346472,1749612638820,-400.0,0.00021643,4]
[365346473,1749612638829,-508.03,0.00021643,4]
[365346474,1749612638838,-434.71250145,0.00021643,4]
[365346475,1749612638848,-460.0,0.00021643,4]
[365346476,1749612638857,-460.0,0.00021643,4]
[365346477,1749612638866,-460.0,0.00021643,4]
[365346478,1749612638876,-460.0,0.00021643,4]
[365346479,1749612638885,-1331.8,0.00021643,4]
[365346480,1749612638895,-460.0,0.00021643,4]
[365346481,1749612638904,-460.0,0.00021643,4]
[365346482,1749612638914,-451.50022909,0.00021643,4]
[365346483,1749612638923,-460.0,0.00021643,4]
[365346484,1749612638933,-460.0,0.00021643,4]
[365346485,1749612638944,-476.15,0.00021643,4]
[365346486,1749612638954,-476.86,0.00021643,4]
[365346487,1749612638963,-460.0,0.00021643,4]
[365346488,1749612638973,-460.0,0.00021643,4]
[365346489,1749612638982,-934.37,0.00021643,4]
[365346490,1749612638993,-460.0,0.00021643,4]
[365346491,1749612639002,-460.0,0.00021643,4]
[365346492,1749612639015,-460.0,0.00021643,4]
[365346493,1749612639024,-460.0,0.00021643,4]
[365346494,1749612639034,-460.0,0.00021643,4]
[365346495,1749612639043,-2712.36,0.00021643,4]
[365346496,1749612639052,-460.0,0.00021643,4]
[365346497,1749612639061,-460.0,0.00021643,4]
[365346498,1749612639071,-278.83011424,0.00021643,4]
[365346499,1749612639080,-460.0,0.00021643,4]
[365346500,1749612639089,-460.0,0.00021643,4]
[365346501,1749612639097,-460.0,0.00021643,4]
[365346502,1749612639107,-1035.03,0.00021643,4]
[365346503,1749612639116,-368.79383335,0.00021643,4]
[365346504,1749612639126,-460.0,0.00021643,4]
[365346505,1749612639135,-460.0,0.00021643,4]
[365346506,1749612639145,-1330.19,0.00021643,4]
[365346507,1749612639154,-701.44,0.00021643,4]
[365346508,1749612639163,-405.17793295,0.00021643,4]
[365346509,1749612639172,-1250.8,0.00021643,4]
[365346510,1749612639182,-460.0,0.00021643,2]
[365346511,1749612639191,-386.97087463,0.00021643,4]
[365346512,1749612639201,-1461.41,0.00021643,4]
[365346513,1749612639210,-727.31,0.00021643,4]
[365346514,1749612639220,-460.0,0.00021643,4]
[365346515,1749612639229,-460.0,0.00021643,4]
[365346516,1749612639239,-2207.98,0.00021643,4]
[365346517,1749612639248,-3133.44,0.00021643,4]
[365346518,1749612639258,-460.0,0.00021643,4]
[365346519,1749612639271,-460.0,0.00021643,4]
[365346520,1749612639281,-460.0,0.00021643,4]
[365346521,1749612639291,-460.0,0.00021643,4]
[365346522,1749612639301,-1903.72,0.00021643,4]
[365346523,1749612639312,-460.0,0.00021643,4]
[365346524,1749612639321,-805.1,0.00021643,4]
[365346525,1749612639331,-658.74,0.00021643,4]
[365346526,1749612639341,-2749.63,0.00021643,4]
[365346527,1749612639351,-2659.13,0.00021643,4]
[365346528,1749612639360,-460.0,0.00021643,4]
[365346529,1749612639370,-599.94197303,0.00021643,4]
[365346530,1749612639379,-887.21,0.00021643,4]
[365346531,1749612639388,-370.0,0.00021643,4]
[365346532,1749612639398,-460.0,0.00021643,4]
[365346533,1749612639408,-460.0,0.00021643,4]
[365346534,1749612639417,-1267.45,0.00021643,4]
[365346535,1749612639427,-460.0,0.00021643,4]
[365346536,1749612639437,-460.0,0.00021643,4]
[365346537,1749612639446,-1336.3,0.00021643,4]
[365346538,1749612639455,-460.0,0.00021643,4]
[365346539,1749612639465,-460.0,0.00021643,4]
[365346540,1749612639475,-1000.03,0.00021666,2]
[365346541,1749612639485,-1861.35,0.000217,2]
[365346542,1749612639495,-413.12890604,0.00021708,2]
[365346543,1749612639505,-420.0,0.0002185,2]
[365346544,1749612639514,-420.0,0.0002185,2]
[365346545,1749612639524,-9376.33792421,0.000219,6]
[365346546,1749612639533,-249.23,0.00021916,2]
[365346547,1749612639542,-207.69529371,0.00021917,2]
[365346548,1749612639551,-353.66491892,0.00021917,4]
[365346549,1749612639561,-500.0,0.00021917,2]
[365346550,1749612639570,-460.0,0.00021917,4]
[365346551,1749612639579,-500.0,0.00021917,2]
[365346552,1749612639588,-500.0,0.00021917,2]
[365346553,1749612639597,-500.0,0.00021917,2]
[365346554,1749612639607,-500.0,0.00021917,2]
[365346555,1749612639616,-337.87281956,0.00021917,4]
[365346556,1749612639626,-362.83759296,0.00021917,4]
[365346557,1749612639635,-277.79747105,0.00021917,4]
[365346558,1749612639644,-380.0,0.00021917,4]
[365346559,1749612639653,-460.0,0.00021917,4]
[365346560,1749612639662,-380.0,0.00021917,4]
[365346561,1749612639672,-365.79823769,0.00021917,4]
[365346563,1749612639681,-460.0,0.00021917,4]
[365346564,1749612639691,-239.87390552,0.00021917,4]
[365346565,1749612639701,-380.0,0.00021917,4]
[365346566,1749612639798,-380.0,0.00021917,4]
[365346567,1749612639809,-460.0,0.00021917,4]
[365346568,1749612639818,-508.03,0.00021917,4]
[365346569,1749612639827,-460.0,0.00021917,4]
[365346570,1749612639837,-460.0,0.00021917,4]
[365346571,1749612639846,-460.0,0.00021917,4]
[365346572,1749612639855,-340.09794815,0.00021917,4]
[365346573,1749612639864,-1331.8,0.00021917,4]
[365346574,1749612639873,-460.0,0.00021917,4]
[365346575,1749612639882,-460.0,0.00021917,4]
[365346576,1749612639891,-215.54679998,0.00021917,4]
[365346577,1749612639901,-380.0,0.00021917,4]
[365346578,1749612639910,-476.15,0.00021917,4]
[365346579,1749612639920,-476.86,0.00021917,4]
[365346580,1749612639929,-460.0,0.00021917,4]
[365346581,1749612639938,-460.0,0.00021917,4]
[365346582,1749612639948,-934.37,0.00021917,4]
[365346583,1749612639957,-500.0,0.00021917,4]
[365346584,1749612639966,-500.0,0.00021917,4]
[365346585,1749612639975,-500.0,0.00021917,4]
[365346586,1749612639985,-500.0,0.00021917,4]
[365346587,1749612639994,-460.0,0.00021917,4]
[365346588,1749612640003,-340.32682135,0.00021917,4]
[365346589,1749612640013,-460.0,0.00021917,4]
[365346590,1749612640022,-460.0,0.00021917,4]
[365346591,1749612640031,-460.0,0.00021917,4]
[365346592,1749612640040,-2712.36,0.00021917,4]
[365346593,1749612640050,-460.0,0.00021917,4]
[365346594,1749612640060,-336.15880836,0.00021917,4]
[365346595,1749612640070,-460.0,0.00021917,4]
[365346596,1749612640079,-460.0,0.00021917,4]
[365346597,1749612640089,-460.0,0.00021917,4]
[365346598,1749612640098,-1035.03,0.00021917,4]
[365346600,1749612640108,-460.0,0.00021917,4]
[365346602,1749612640117,-350.0,0.00021917,4]
[365346604,1749612640127,-1330.19,0.00021917,4]
[365346606,1749612640136,-701.44,0.00021917,4]
[365346608,1749612640146,-1250.8,0.00021917,4]
[365346609,1749612640155,-460.0,0.00021917,2]
[365346611,1749612640164,-1461.41,0.00021917,4]
[365346613,1749612640174,-727.31,0.00021917,4]
[365346615,1749612640183,-460.0,0.00021917,4]
[365346617,1749612640192,-380.0,0.00021917,4]
[365346619,1749612640201,-2207.98,0.00021917,4]
[365346622,1749612640211,-3133.44,0.00021917,4]
[365346623,1749612640220,-460.0,0.00021917,4]
[365346625,1749612640229,-460.0,0.00021917,4]
[365346627,1749612640238,-460.0,0.00021917,4]
[365346629,1749612640247,-460.0,0.00021917,4]
[365346631,1749612640256,-1903.72,0.00021917,4]
[365346634,1749612640270,-380.0,0.00021917,4]
[365346636,1749612640280,-805.1,0.00021917,4]
[365346638,1749612640290,-658.74,0.00021917,4]
[365346640,1749612640299,-2749.63,0.00021917,4]
[365346642,1749612640309,-2659.13,0.00021917,4]
[365346644,1749612640318,-460.0,0.00021917,4]
[365346646,1749612640327,-887.21,0.00021917,4]
[365346648,1749612640336,-460.0,0.00021917,4]
[365346650,1749612640346,-460.0,0.00021917,4]
[365346652,1749612640356,-1267.45,0.00021917,4]
[365346654,1749612640366,-460.0,0.00021917,4]
[365346655,1749612640375,-460.0,0.00021917,4]
[365346657,1749612640384,-1336.3,0.00021917,4]
[365346659,1749612640394,-460.0,0.00021917,4]
[365346661,1749612640403,-460.0,0.00021917,4]
[365346663,1749612640412,-293.42706362,0.00021918,2]
[365346665,1749612640422,-325.65579586,0.00021957,2]
[365346667,1749612640432,-197.0,0.00022,2]
[365346669,1749612640441,-19526.55190897,0.00022,2]
[365346682,1749612640553,-13029.5257198,0.00022,2]
[365346684,1749612640563,-350.91555337,0.00022,2]
[365346686,1749612640572,-21495.20862248,0.00022,2]
[365346687,1749612640581,-20232.50229657,0.00022,2]
[365346688,1749612640590,-66706.20976967,0.00022,2]
[365346689,1749612640599,-197.0,0.00022,2]
[365346690,1749612640608,-9376.33792407,0.00022003,6]
[365346691,1749612640616,-9376.33792407,0.00022107,6]
[365346692,1749612640625,-600.0,0.0002216,2]
[365346693,1749612640635,-460.0,0.00022191,4]
[365346694,1749612640644,-500.0,0.00022191,2]
[365346695,1749612640653,-460.0,0.00022191,4]
[365346696,1749612640663,-203.82286966,0.00022191,4]
[365346697,1749612640672,-460.0,0.00022191,4]
[365346698,1749612640682,-508.03,0.00022191,4]
[365346699,1749612640691,-304.96158848,0.00022191,4]
[365346700,1749612640701,-460.0,0.00022191,4]
[365346701,1749612640710,-460.0,0.00022191,4]
[365346702,1749612640719,-1331.8,0.00022191,4]
[365346703,1749612640729,-460.0,0.00022191,4]
[365346704,1749612640738,-460.0,0.00022191,4]
[365346705,1749612640748,-476.15,0.00022191,4]
[365346706,1749612640758,-476.86,0.00022191,4]
[365346707,1749612640767,-460.0,0.00022191,4]
[365346708,1749612640776,-460.0,0.00022191,4]
[365346709,1749612640786,-934.37,0.00022191,4]
[365346710,1749612640795,-500.0,0.00022191,4]
[365346712,1749612640805,-460.0,0.00022191,4]
[365346714,1749612640815,-280.0,0.00022191,4]
[365346716,1749612640825,-460.0,0.00022191,4]
[365346718,1749612640835,-496.09735451,0.00022191,4]
[365346719,1749612640844,-2712.36,0.00022191,4]
[365346720,1749612640853,-460.0,0.00022191,4]
[365346721,1749612640862,-460.0,0.00022191,4]
[365346723,1749612640872,-460.0,0.00022191,4]
[365346725,1749612640881,-467.66592392,0.00022191,4]
[365346727,1749612640890,-1035.03,0.00022191,4]
[365346729,1749612640900,-460.0,0.00022191,4]
[365346730,1749612640910,-1330.19,0.00022191,4]
[365346731,1749612640919,-701.44,0.00022191,4]
[365346732,1749612640929,-1250.8,0.00022191,4]
[365346733,1749612640938,-460.0,0.00022191,2]
[365346734,1749612640948,-1461.41,0.00022191,4]
[365346735,1749612640957,-727.31,0.00022191,4]
[365346736,1749612640967,-460.0,0.00022191,4]
[365346737,1749612640977,-2207.98,0.00022191,4]
[365346738,1749612640987,-3133.44,0.00022191,4]
[365346739,1749612640996,-460.0,0.00022191,4]
[365346740,1749612641005,-460.0,0.00022191,4]
[365346741,1749612641014,-567.89662023,0.00022191,4]
[365346742,1749612641023,-460.0,0.00022191,4]
[365346743,1749612641033,-1903.72,0.00022191,4]
[365346744,1749612641042,-805.1,0.00022191,4]
[365346745,1749612641052,-658.74,0.00022191,4]
[365346746,1749612641062,-2749.63,0.00022191,4]
[365346747,1749612641071,-2659.13,0.00022191,4]
[365346748,1749612641081,-460.0,0.00022191,4]
[365346749,1749612641090,-887.21,0.00022191,4]
[365346750,1749612641100,-460.0,0.00022191,4]
[365346751,1749612641109,-360.0,0.00022191,4]
[365346752,1749612641120,-1267.45,0.00022191,4]
[365346753,1749612641129,-460.0,0.00022191,4]
[365346754,1749612641139,-460.0,0.00022191,4]
[365346755,1749612641149,-1336.3,0.00022191,4]
[365346756,1749612641158,-460.0,0.00022191,4]
[365346757,1749612641168,-460.0,0.00022191,4]
[365346758,1749612641178,-173.61221487,0.000222,69]
[365346759,1749612641187,-9376.33792407,0.0002221,6]
[365346760,1749612641196,-178.1195935,0.00022267,2]
[365346761,1749612641206,-9376.33792407,0.00022314,7]
[365346762,1749612641215,-223.0,0.0002235,2]
[365346763,1749612641225,-36358.74,0.000224,2]
[365346764,1749612641235,-719.27009169,0.000224,2]
[365346765,1749612641245,-835.03886221,0.00022415,2]
[365346766,1749612641254,-229.71724145,0.00022415,2]
[365346767,1749612641266,-160.0,0.00022415,2]
[365346768,1749612641276,-160.0,0.00022415,2]
[365346769,1749612641285,-160.0,0.00022415,2]
[365346770,1749612641295,-160.0,0.00022415,2]
[365346771,1749612641305,-213.16534259,0.00022415,2]
[365346772,1749612641315,-424.19973472,0.00022415,2]
[365346773,1749612641325,-160.0,0.00022415,2]
[365346774,1749612641334,-842.5625,0.00022415,2]
[365346775,1749612641345,-11860.25191276,0.00022417,7]
[365346776,1749612641356,-9376.33792407,0.00022417,7]
[365346777,1749612641366,-213.16534259,0.00022417,7]
[365346778,1749612641375,-160.0,0.00022419,2]
[365346779,1749612641385,-160.0,0.00022419,2]
[365346780,1749612641394,-11860.25191276,0.00022419,2]
[365346781,1749612641404,-160.0,0.00022419,2]
[365346782,1749612641413,-421.96,0.00022455,3]
[365346783,1749612641423,-500.0,0.00022465,2]
[365346784,1749612641433,-444.58906029,0.00022465,4]
[365346785,1749612641443,-500.0,0.00022465,2]
[365346786,1749612641453,-460.0,0.00022465,4]
[365346787,1749612641462,-460.0,0.00022465,4]
[365346788,1749612641472,-508.03,0.00022465,4]
[365346789,1749612641482,-460.0,0.00022465,4]
[365346790,1749612641492,-460.0,0.00022465,4]
[365346791,1749612641502,-1331.8,0.00022465,4]
[365346792,1749612641511,-460.0,0.00022465,4]
[365346793,1749612641520,-313.35113288,0.00022465,4]
[365346794,1749612641530,-476.15,0.00022465,4]
[365346795,1749612641539,-476.86,0.00022465,4]
[365346796,1749612641549,-194.97111328,0.00022465,4]
[365346797,1749612641559,-934.37,0.00022465,4]
[365346798,1749612641655,-547.09445264,0.00022465,4]
[365346799,1749612641665,-500.0,0.00022465,4]
[365346800,1749612641674,-460.0,0.00022465,4]
[365346801,1749612641683,-372.98337971,0.00022465,4]
[365346802,1749612641693,-2712.36,0.00022465,4]
[365346803,1749612641702,-460.0,0.00022465,4]
[365346804,1749612641711,-202.69568434,0.00022465,4]
[365346805,1749612641721,-380.0,0.00022465,4]
[365346806,1749612641730,-1035.03,0.00022465,4]
[365346807,1749612641739,-460.0,0.00022465,4]
[365346808,1749612641749,-1330.19,0.00022465,4]
[365346809,1749612641758,-701.44,0.00022465,4]
[365346810,1749612641768,-1250.8,0.00022465,4]
[365346811,1749612641777,-460.0,0.00022465,2]
[365346812,1749612641786,-1461.41,0.00022465,4]
[365346813,1749612641795,-727.31,0.00022465,4]
[365346814,1749612641804,-460.0,0.00022465,4]
[365346815,1749612641813,-2207.98,0.00022465,4]
[365346816,1749612641822,-3133.44,0.00022465,4]
[365346817,1749612641831,-460.0,0.00022465,4]
[365346818,1749612641840,-480.0,0.00022465,4]
[365346819,1749612641849,-380.0,0.00022465,4]
[365346820,1749612641858,-1903.72,0.00022465,4]
[365346821,1749612641868,-805.1,0.00022465,4]
[365346822,1749612641877,-2749.63,0.00022465,4]
[365346823,1749612641887,-658.74,0.00022465,4]
[365346824,1749612641896,-2659.13,0.00022465,4]
[365346825,1749612641905,-460.0,0.00022465,4]
[365346826,1749612641914,-887.21,0.00022465,4]
[365346827,1749612641923,-460.0,0.00022465,4]
[365346828,1749612641933,-152.828679,0.00022465,7]
[365346829,1749612641942,-1267.45,0.00022465,4]
[365346830,1749612641950,-584.73257624,0.00022465,4]
[365346831,1749612641960,-460.0,0.00022465,4]
[365346832,1749612641969,-1336.3,0.00022465,4]
[365346833,1749612641978,-460.0,0.00022465,4]
[365346834,1749612641987,-460.0,0.00022465,4]
[365346835,1749612641996,-449.47333503,0.00022473,2]
[365346836,1749612642005,-9376.33792407,0.00022521,7]
[365346837,1749612642014,-160.755261,0.00022598,2]
[365346838,1749612642024,-151.0,0.000226,7]
[365346839,1749612642033,-1333.38,0.00022608,2]
[365346840,1749612642042,-9376.33792407,0.00022624,7]
[365346841,1749612642052,-5000.0,0.00022635,2]
[365346842,1749612642062,-207.4,0.00022635,2]
[365346843,1749612642070,-750.0,0.00022635,2]
[365346844,1749612642079,-500.0,0.00022635,2]
[365346845,1749612642089,-750.0,0.00022635,2]
[365346846,1749612642099,-500.0,0.00022635,2]
[365346847,1749612642108,-750.0,0.00022635,2]
[365346848,1749612642117,-500.0,0.00022635,2]
[365346849,1749612642127,-750.0,0.00022635,2]
[365346850,1749612642135,-500.0,0.00022635,2]
[365346851,1749612642145,-750.0,0.00022635,2]
[365346852,1749612642154,-500.0,0.00022635,2]
[365346853,1749612642164,-750.0,0.00022635,2]
[365346854,1749612642173,-500.0,0.00022635,2]
[365346855,1749612642182,-750.0,0.00022635,2]
[365346856,1749612642192,-500.0,0.00022635,2]
[365346857,1749612642201,-750.0,0.00022635,2]
[365346858,1749612642210,-750.0,0.00022635,2]
[365346859,1749612642220,-500.0,0.00022635,2]
[365346860,1749612642229,-750.0,0.00022635,2]
[365346861,1749612642239,-500.0,0.00022635,2]
[365346862,1749612642248,-750.0,0.00022635,2]
[365346863,1749612642258,-515.38450007,0.00022635,2]
[365346864,1749612642271,-750.0,0.00022635,2]
[365346865,1749612642280,-591.10451232,0.00022635,2]
[365346866,1749612642290,-325.65579586,0.00022645,2]
[365346867,1749612642299,-544.54,0.000227,7]
[365346868,1749612642309,-25786.52687079,0.000227,2]
[365346869,1749612642319,-9376.33792407,0.00022728,7]
[365346870,1749612642328,-843.94,0.00022728,3]
[365346871,1749612642339,-373.22237197,0.00022739,2]
[365346872,1749612642349,-328.37207593,0.00022739,4]
[365346873,1749612642359,-460.0,0.00022739,4]
[365346874,1749612642368,-508.03,0.00022739,4]
[365346875,1749612642377,-460.0,0.00022739,4]
[365346876,1749612642387,-460.0,0.00022739,4]
[365346877,1749612642396,-1331.8,0.00022739,4]
[365346878,1749612642405,-460.0,0.00022739,4]
[365346879,1749612642414,-476.15,0.00022739,4]
[365346880,1749612642423,-476.86,0.00022739,4]
[365346881,1749612642433,-934.37,0.00022739,4]
[365346882,1749612642442,-500.0,0.00022739,4]
[365346883,1749612642452,-460.0,0.00022739,4]
[365346884,1749612642461,-2712.36,0.00022739,4]
[365346885,1749612642471,-460.0,0.00022739,4]
[365346886,1749612642480,-1035.03,0.00022739,4]
[365346887,1749612642490,-460.0,0.00022739,4]
[365346888,1749612642500,-1330.19,0.00022739,4]
[365346889,1749612642510,-701.44,0.00022739,4]
[365346890,1749612642520,-1250.8,0.00022739,4]
[365346891,1749612642529,-460.0,0.00022739,2]
[365346892,1749612642539,-1461.41,0.00022739,4]
[365346893,1749612642549,-727.31,0.00022739,4]
[365346894,1749612642558,-460.0,0.00022739,4]
[365346895,1749612642568,-2207.98,0.00022739,4]
[365346896,1749612642578,-2888.16637584,0.00022739,4]
[365346900,1749612642888,-522.88215067,0.00021095,4]
[365346901,1749612642898,-364.20076393,0.00021095,4]
[365346902,1749612642907,-460.0,0.00021095,4]
[365346903,1749612642917,-439.30146401,0.00021095,4]
[365346904,1749612642926,-460.0,0.00021369,4]
[365346905,1749612642936,-460.0,0.00021643,4]
[365346906,1749612642945,-39450.0,0.000218,2]
[365346907,1749612642955,-460.0,0.00021917,4]
[365346908,1749612642964,-460.0,0.00022191,4]
[365346909,1749612642974,-842.5625,0.00022417,7]
[365346910,1749612642983,-460.0,0.00022465,4]
[365346911,1749612642993,-245.27362416,0.00022739,4]
[365346912,1749612643002,-460.0,0.00022739,4]
[365346913,1749612643012,-1903.72,0.00022739,4]
[365346914,1749612643021,-805.1,0.00022739,4]
[365346915,1749612643031,-2749.63,0.00022739,4]
[365346916,1749612643041,-658.74,0.00022739,4]
[365346917,1749612643051,-2659.13,0.00022739,4]
[365346918,1749612643066,-460.0,0.00022739,4]
[365346919,1749612643076,-887.21,0.00022739,4]
[365346920,1749612643087,-460.0,0.00022739,4]
[365346921,1749612643097,-1267.45,0.00022739,4]
[365346922,1749612643107,-460.0,0.00022739,4]
[365346923,1749612643117,-1336.3,0.00022739,4]
[365346924,1749612643127,-460.0,0.00022739,4]
[365346925,1749612643137,-460.0,0.00022739,4]
[365346926,1749612643147,-460.0,0.00022739,4]
[365346927,1749612643157,-373.93097286,0.00022796,2]
[365346928,1749612643166,-1000.0,0.000228,2]
[365346929,1749612643176,-1861.35,0.000228,7]
[365346930,1749612643189,-151.0,0.000228,6]
[365346931,1749612643199,-9376.33792407,0.00022831,8]
[365346933,1749612643209,-729.438125,0.00022877,2]
[365346935,1749612643219,-9376.33792407,0.00022934,8]
[365346937,1749612643229,-502.39152022,0.00022973,2]
[365346939,1749612643238,-600.0,0.00022973,2]
[365346941,1749612643247,-567.2069987,0.00022973,2]
[365346943,1749612643256,-547.46557668,0.00022973,2]
[365346946,1749612643271,-501.56200485,0.00022973,2]
[365346947,1749612643280,-503.96951609,0.00022973,2]
[365346950,1749612643290,-501.60046574,0.00022973,2]
[365346952,1749612643299,-506.16225976,0.00022973,2]
[365346954,1749612643309,-67369.56474976,0.00023,2]
[365346956,1749612643319,-624.3157757,0.00023,2]
[365346957,1749612643329,-40260.56482803,0.00023,2]
[365346959,1749612643340,-10043.38789823,0.00023,2]
[365346962,1749612643350,-1328.71905864,0.00023,2]
[365346964,1749612643359,-12971.49030353,0.00023,2]
[365346974,1749612643456,-500.0,0.00023,2]
[365346975,1749612643467,-74049.0764779,0.00023,2]
[365346976,1749612643478,-474.33503955,0.00023013,2]
[365346977,1749612643490,-508.03,0.00023013,4]
[365346978,1749612643501,-460.0,0.00023013,4]
[365346979,1749612643513,-460.0,0.00023013,4]
[365346980,1749612643524,-1331.8,0.00023013,4]
[365346981,1749612643534,-460.0,0.00023013,4]
[365346982,1749612643544,-476.15,0.00023013,4]
[365346983,1749612643554,-476.86,0.00023013,4]
[365346984,1749612643564,-934.37,0.00023013,4]
[365346985,1749612643575,-500.0,0.00023013,4]
[365346986,1749612643586,-460.0,0.00023013,4]
[365346987,1749612643596,-2712.36,0.00023013,4]
[365346989,1749612643606,-460.0,0.00023013,4]
[365346991,1749612643616,-1035.03,0.00023013,4]
[365346993,1749612643626,-460.0,0.00023013,4]
[365346995,1749612643636,-1330.19,0.00023013,4]
[365346997,1749612643646,-701.44,0.00023013,4]
[365346998,1749612643655,-1250.8,0.00023013,4]
[365346999,1749612643665,-460.0,0.00023013,2]
[365347001,1749612643675,-1461.41,0.00023013,4]
[365347003,1749612643684,-727.31,0.00023013,4]
[365347005,1749612643694,-460.0,0.00023013,4]
[365347007,1749612643704,-2207.98,0.00023013,4]
[365347009,1749612643713,-3133.44,0.00023013,4]
[365347011,1749612643723,-460.0,0.00023013,4]
[365347013,1749612643732,-1903.72,0.00023013,4]
[365347015,1749612643744,-805.1,0.00023013,4]
[365347017,1749612643754,-2749.63,0.00023013,4]
[365347019,1749612643764,-658.74,0.00023013,4]
[365347021,1749612643774,-2659.13,0.00023013,4]
[365347023,1749612643784,-460.0,0.00023013,4]
[365347025,1749612643793,-887.21,0.00023013,4]
[365347027,1749612643803,-460.0,0.00023013,4]
[365347029,1749612643813,-1267.45,0.00023013,4]
[365347031,1749612643822,-460.0,0.00023013,4]
[365347033,1749612643831,-1336.3,0.00023013,4]
[365347035,1749612643841,-460.0,0.00023013,4]
[365347037,1749612643851,-460.0,0.00023013,4]
[365347039,1749612643860,-460.0,0.00023013,4]
[365347041,1749612643869,-9376.33792407,0.00023038,8]
[365347043,1749612643878,-365.0707398,0.00023041,2]
[365347045,1749612643888,-365.0707398,0.00023041,2]
[365347047,1749612643897,-365.0707398,0.00023041,2]
[365347049,1749612643907,-365.0707398,0.00023041,2]
[365347051,1749612643916,-348.2976203,0.00023041,2]
[365347053,1749612643926,-365.0707398,0.00023041,2]
[365347055,1749612643935,-151.0,0.000231,9]
[365347057,1749612643944,-151.0,0.00023141,7]
[365347059,1749612643953,-151.0,0.00023141,7]
[365347061,1749612643963,-151.0,0.00023141,7]
[365347063,1749612643973,-153.7149,0.00023141,7]
[365347065,1749612643982,-9376.33792407,0.00023141,8]
[365347067,1749612643992,-5000.0,0.00023183,2]
[365347069,1749612644001,-9376.33792407,0.00023245,8]
[365347071,1749612644011,-373.93097286,0.00023248,2]
[365347073,1749612644020,-600.0,0.00023256,2]
[365347075,1749612644029,-249.23,0.00023286,2]
[365347077,1749612644039,-508.03,0.00023287,4]
[365347079,1749612644048,-460.0,0.00023287,4]
[365347081,1749612644058,-460.0,0.00023287,4]
[365347083,1749612644067,-1331.8,0.00023287,4]
[365347085,1749612644076,-460.0,0.00023287,4]
[365347087,1749612644086,-476.15,0.00023287,4]
[365347089,1749612644095,-476.86,0.00023287,4]
[365347091,1749612644105,-934.37,0.00023287,4]
[365347093,1749612644114,-500.0,0.00023287,4]
[365347095,1749612644124,-460.0,0.00023287,4]
[365347097,1749612644133,-2712.36,0.00023287,4]
[365347099,1749612644142,-460.0,0.00023287,4]
[365347101,1749612644151,-1035.03,0.00023287,4]
[365347103,1749612644160,-460.0,0.00023287,4]
[365347105,1749612644169,-1330.19,0.00023287,4]
[365347107,1749612644179,-701.44,0.00023287,4]
[365347109,1749612644188,-1250.8,0.00023287,4]
[365347111,1749612644197,-460.0,0.00023287,2]
[365347113,1749612644206,-1461.41,0.00023287,4]
[365347115,1749612644215,-727.31,0.00023287,4]
[365347117,1749612644224,-460.0,0.00023287,4]
[365347119,1749612644233,-2207.98,0.00023287,4]
[365347121,1749612644244,-3133.44,0.00023287,4]